[Event "Int SVK-ch Open 2020"]
[Site "Drienica"]
[Date "2020.08.15"]
[Round "7.15"]
[White "Brnusak, Tomas"]
[Black "Priechodsky, Radovan"]
[Result "0-1"]
[ECO "A22"]
[WhiteElo "2044"]
[BlackElo "1975"]
[Annotator "ChessBase"]
[PlyCount "62"]
[EventDate "2020.08.07"]
[EventType "swiss"]
[EventCountry "SVK"]
[TimeControl "40/5400+30:1800+30"]

1. c4 {[%emt 0:00:00]} e5 {[%emt 0:00:00]} 2. Nc3 {[%emt 0:00:17]} Nf6 {[%emt 0:00:00]} 3. g3 {[%emt 0:00:41]} Bb4 {[%emt 0:00:00]} 4. Bg2 {[%emt 0:00:43]} Bxc3 {[%emt 0:00:02]} 5. bxc3 {[%emt 0:00:24]} O-O {[%emt 0:00:46]} 6. e4 {[%emt 0:00:54]} d6 {[%emt 0:08:40]} 7. d3 {[%emt 0:02:46]} Na6 {[%emt 0:01:53]} 8. Ne2 {[%emt 0:00:59]} Nc5 {[%emt 0:00:18]} 9. O-O {[%emt 0:00:16]} c6 {[%emt 0:01:24]} 10. Qc2 {[%emt 0:02:15]} Re8 {[%emt 0:01:26]} 11. h3 {[%emt 0:08:03]} d5 {[%emt 0:04:43]} 12. cxd5 {[%emt 0:02:04]} cxd5 {[%emt 0:00:28]} 13. Be3 {[%emt 0:02:25]} dxe4 {[%emt 0:08:52]} 14. dxe4 {[%emt 0:00:18]} Qc7 {[%emt 0:01:40]} 15. Rfd1 {[%emt 0:06:59]} Bd7 {[%emt 0:04:11]} 16. Rd2 {[%emt 0:06:47]} Rad8 {[%emt 0:01:21]} 17. Bxc5 {[%emt 0:04:04]} Qxc5 {[%emt 0:00:22]} 18. Rad1 {[%emt 0:00:36]} Qa5 {[%emt 0:27:23]} 19. Nc1 {[%emt 0:11:29]} h6 {[%emt 0:06:18]} 20. Nb3 {[%emt 0:00:47]} Qc7 {[%emt 0:01:02]} 21. Bf1 {[%emt 0:14:29]} b6 {[%emt 0:09:43]} 22. f3 {[%emt 0:05:49]} Rc8 {[%emt 0:08:19]} 23. Ba6 {[%emt 0:04:50]} Rcd8 {[%emt 0:01:06]} 24. g4 {[%emt 0:00:59]} Ba4 {[%emt 0:03:28]} 25. c4 {[%emt 0:05:21]} Nh7 {[%emt 0:02:13]} 26. Qc3 {[%emt 0:01:27]} Rxd2 {[%emt 0:02:38]} 27. Rxd2 {[%emt 0:00:40]} Qe7 {[%emt 0:00:45]} 28. Rh2 {[%emt 0:03:52]} Qh4 {[%emt 0:00:05]} 29. Kg2 {[%emt 0:00:29]} Rd8 {[%emt 0:00:54]} 30. Nd2 {[%emt 0:01:07]} Qe1 {[%emt 0:00:42]} 31. Nf1 {[%emt 0:00:57]} Qxc3 {[%emt 0:00:22]} 0-1

[Event "Int SVK-ch Open 2020"]
[Site "Drienica"]
[Date "2020.08.13"]
[Round "7.15"]
[White "Recky, Norbert"]
[Black "Budjac, Martin"]
[Result "1-0"]
[ECO "C77"]
[WhiteElo "1811"]
[BlackElo "1511"]
[Annotator "NA"]
[PlyCount "47"]
[EventDate "2020.08.07"]
[EventType "swiss"]
[EventCountry "SVK"]
[SourceTitle "playchess.com"]
[Source "ChessBase"]
[SourceQuality "1"]
[TimeControl "40/5400+30:1800+30"]

1. e4 {[%emt 0:00:00]} e5 {[%emt 0:00:00]} 2. Nf3 {[%emt 0:00:00]} Nc6 {[%emt 0:00:00]} 3. Bb5 {[%emt 0:00:00]} a6 {[%emt 0:00:00]} 4. Ba4 {[%emt 0:00:00]} Nf6 {[%emt 0:00:06]} 5. d3 {[%emt 0:00:04]} b5 {[%emt 0:00:29]} 6. Bb3 {[%emt 0:00:09]} Be7 {[%emt 0:00:22]} 7. O-O {[%emt 0:01:19]} O-O {[%emt 0:00:14]} 8. Re1 {[%emt 0:01:28]} d6 {[%emt 0:00:36]} 9. Nbd2 {[%emt 0:00:42]} Na5 {[%emt 0:00:16]} 10. Nf1 {[%emt 0:00:44]} Nxb3 {[%emt 0:00:12]} 11. axb3 {[%emt 0:00:43]} c5 {[%emt 0:03:15]} 12. c3 {[%emt 0:01:07]} Bb7 {[%emt 0:02:36]} 13. Ng3 {[%emt 0:02:43]} Re8 {[%emt 0:02:23]} 14. Nf5 {[%emt 0:01:25]} Bf8 {[%emt 0:01:55]} 15. Bg5 {[%emt 0:03:27]} h6 {[%emt 0:01:32]} 16. Bh4 {[%emt 0:01:19]} g6 {[%emt 0:01:44]} 17. Ne3 {[%emt 0:01:04]} Bg7 {[%emt 0:00:09]} 18. g4 {[%emt 0:01:51]} Qd7 {[%emt 0:02:28]} 19. Nd2 {[%emt 0:05:04]} d5 {[%emt 0:02:45]} 20. Bxf6 {[%emt 0:18:24]} Bxf6 {[%emt 0:00:09]} 21. exd5 {[%emt 0:00:18]} Bxd5 {[%emt 0:00:09]} 22. Nxd5 {[%emt 0:00:10]} Qxd5 {[%emt 0:00:09]} 23. Qf3 {[%emt 0:00:07]} Qd6 {[%emt 0:04:23]} 24. Ne4 {[%emt 0:00:39]} 1-0

[Event "Int SVK-ch Open 2020"]
[Site "Drienica"]
[Date "2020.08.13"]
[Round "7.16"]
[White "Harvan, Tomas"]
[Black "Kulich, Daniel"]
[Result "1-0"]
[ECO "B15"]
[WhiteElo "1794"]
[BlackElo "1492"]
[Annotator "NA"]
[PlyCount "88"]
[EventDate "2020.08.07"]
[EventType "swiss"]
[EventCountry "SVK"]
[SourceTitle "playchess.com"]
[Source "ChessBase"]
[SourceQuality "1"]
[TimeControl "40/5400+30:1800+30"]

1. e4 {[%emt 0:00:00]} c6 {[%emt 0:00:00]} 2. d4 {[%emt 0:00:00]} d5 {[%emt 0:00:03]} 3. Nc3 {[%emt 0:00:05]} dxe4 {[%emt 0:00:38]} 4. Nxe4 {[%emt 0:00:08]} Nf6 {[%emt 0:00:10]} 5. Qe2 {[%emt 0:01:08]} Nxe4 {[%emt 0:00:09]} 6. Qxe4 {[%emt 0:00:05]} Qd5 {[%emt 0:00:06]} 7. Bd3 {[%emt 0:03:56]} Qxe4+ {[%emt 0:00:45]} 8. Bxe4 {[%emt 0:00:11]} Be6 {[%emt 0:00:14]} 9. Bf4 {[%emt 0:01:14]} Bd5 {[%emt 0:00:57]} 10. f3 {[%emt 0:03:46]} Nd7 {[%emt 0:00:41]} 11. Bd3 {[%emt 0:02:32]} O-O-O {[%emt 0:03:32]} 12. c4 {[%emt 0:01:15]} Be6 {[%emt 0:01:08]} 13. Rc1 {[%emt 0:08:08]} Nb6 {[%emt 0:00:29]} 14. d5 {[%emt 0:00:22]} Bd7 {[%emt 0:00:46]} 15. Ne2 {[%emt 0:03:15]} e6 {[%emt 0:02:19]} 16. Be4 {[%emt 0:11:18]} exd5 {[%emt 0:03:23]} 17. cxd5 {[%emt 0:00:09]} Bb4+ {[%emt 0:01:09]} 18. Kf2 {[%emt 0:01:10]} Na4 {[%emt 0:04:16]} 19. dxc6 {[%emt 0:04:51]} bxc6 {[%emt 0:11:54]} 20. Rc4 {[%emt 0:03:12]} c5 {[%emt 0:02:05]} 21. a3 {[%emt 0:01:07]} Be6 {[%emt 0:11:34]} 22. Rxb4 {[%emt 0:03:19]} cxb4 {[%emt 0:00:49]} 23. Rc1+ {[%emt 0:00:04]} Kd7 {[%emt 0:02:40]} 24. Bc6+ {[%emt 0:01:15]} Ke7 {[%emt 0:13:37]} 25. Bxa4 {[%emt 0:00:15]} bxa3 {[%emt 0:00:43]} 26. Rc7+ {[%emt 0:02:39]} Bd7 {[%emt 0:02:11]} 27. bxa3 {[%emt 0:00:57]} a6 {[%emt 0:02:25]} 28. Nd4 {[%emt 0:03:04]} Ke8 {[%emt 0:02:39]} 29. Bb3 {[%emt 0:12:53]} Rc8 {[%emt 0:04:14]} 30. Bxf7+ {[%emt 0:00:48]} Kxf7 {[%emt 0:02:59]} 31. Rxd7+ {[%emt 0:00:08]} Kf6 {[%emt 0:14:23]} 32. Rd6+ {[%emt 0:01:28]} Kf7 {[%emt 0:01:25]} 33. Rxa6 {[%emt 0:00:59]} Ra8 {[%emt 0:00:28]} 34. Rxa8 {[%emt 0:00:50]} Rxa8 {[%emt 0:00:15]} 35. Bd6 {[%emt 0:06:54]} Ra4 {[%emt 0:04:46]} 36. Bb4 {[%emt 0:00:19]} g6 {[%emt 0:02:32]} 37. Ke3 {[%emt 0:00:21]} Kf6 {[%emt 0:05:14]} 38. Ke4 {[%emt 0:03:06]} Ra8 {[%emt 0:00:50]} 39. h4 {[%emt 0:02:28]} Re8+ {[%emt 0:00:29]} 40. Kf4 {[%emt 0:00:30]} Rd8 {[%emt 0:00:31]} 41. Be7+ {[%emt 0:30:47]} Kxe7 {[%emt 0:00:40]} 42. Nc6+ {[%emt 0:00:00]} Ke8 {[%emt 0:01:02]} 43. Nxd8 {[%emt 0:00:00]} Kxd8 {[%emt 0:00:12]} 44. Kg5 {[%emt 0:00:00]} h6+ {[%emt 0:00:16]} 1-0

[Event "Int SVK-ch Open 2020"]
[Site "Drienica"]
[Date "2020.08.15"]
[Round "7.17"]
[White "Svobodova, Michaela"]
[Black "Brhel, Jan"]
[Result "1-0"]
[ECO "B31"]
[WhiteElo "1964"]
[BlackElo "2042"]
[Annotator "ChessBase"]
[PlyCount "123"]
[EventDate "2020.08.07"]
[EventType "swiss"]
[EventCountry "SVK"]
[TimeControl "40/5400+30:1800+30"]

1. e4 {[%emt 0:00:00]} c5 {[%emt 0:03:18]} 2. Nf3 {[%emt 0:00:00]} Nc6 {[%emt 0:00:16]} 3. Bb5 {[%emt 0:00:12]} g6 {[%emt 0:02:51]} 4. Bxc6 {[%emt 0:00:12]} bxc6 {[%emt 0:00:39]} 5. O-O {[%emt 0:00:41]} Bg7 {[%emt 0:01:35]} 6. Re1 {[%emt 0:00:22]} e5 {[%emt 0:02:46]} 7. c3 {[%emt 0:08:09]} Ne7 {[%emt 0:00:13]} 8. d4 {[%emt 0:00:35]} cxd4 {[%emt 0:00:08]} 9. cxd4 {[%emt 0:00:19]} exd4 {[%emt 0:00:07]} 10. Nxd4 {[%emt 0:00:37]} O-O {[%emt 0:01:30]} 11. Nc3 {[%emt 0:00:38]} Qa5 {[%emt 0:06:54]} 12. Bf4 {[%emt 0:06:07]} Qb4 {[%emt 0:05:42]} 13. Nb3 {[%emt 0:18:30]} d5 {[%emt 0:00:40]} 14. Rc1 {[%emt 0:11:15]} Be6 {[%emt 0:26:46]} 15. a3 {[%emt 0:07:47]} Qb6 {[%emt 0:00:37]} 16. Na4 {[%emt 0:10:14]} Qb5 {[%emt 0:00:42]} 17. Nd4 {[%emt 0:03:55]} Bxd4 {[%emt 0:00:23]} 18. Qxd4 {[%emt 0:00:25]} dxe4 {[%emt 0:00:39]} 19. Nc3 {[%emt 0:09:28]} Qh5 {[%emt 0:17:47]} 20. Nxe4 {[%emt 0:01:07]} Nd5 {[%emt 0:00:35]} 21. Rc5 {[%emt 0:04:22]} f5 {[%emt 0:05:15]} 22. Ng3 {[%emt 0:05:23]} Qg4 {[%emt 0:00:26]} 23. Rxe6 {[%emt 0:03:36]} Nxf4 {[%emt 0:01:30]} 24. Rd6 {[%emt 0:01:05]} Rae8 {[%emt 0:04:40]} 25. h3 {[%emt 0:02:20]} Ne2+ {[%emt 0:10:48]} 26. Nxe2 {[%emt 0:01:03]} Qxe2 {[%emt 0:00:08]} 27. Rcxc6 {[%emt 0:00:46]} Rf7 {[%emt 0:03:35]} 28. b4 {[%emt 0:01:16]} Qe1+ {[%emt 0:00:54]} 29. Kh2 {[%emt 0:00:08]} Qe5+ {[%emt 0:00:16]} 30. Qxe5 {[%emt 0:00:22]} Rxe5 {[%emt 0:00:07]} 31. Rd8+ {[%emt 0:01:39]} Kg7 {[%emt 0:00:14]} 32. Rdc8 {[%emt 0:00:40]} Ree7 {[%emt 0:01:30]} 33. Kg3 {[%emt 0:00:22]} Rd7 {[%emt 0:00:15]} 34. Rc3 {[%emt 0:00:42]} Rb7 {[%emt 0:00:17]} 35. R8c4 {[%emt 0:00:25]} Rfe7 {[%emt 0:01:01]} 36. a4 {[%emt 0:00:33]} Kh6 {[%emt 0:01:08]} 37. b5 {[%emt 0:00:09]} a6 {[%emt 0:01:13]} 38. bxa6 {[%emt 0:00:54]} Ra7 {[%emt 0:00:01]} 39. Rc6 {[%emt 0:01:06]} Re5 {[%emt 0:00:02]} 40. R3c5 {[%emt 0:00:59]} Rxc5 {[%emt 0:00:57]} 41. Rxc5 {[%emt 0:30:06]} Rxa6 {[%emt 0:30:07]} 42. a5 {[%emt 0:00:21]} Rd6 {[%emt 0:00:48]} 43. Rc3 {[%emt 0:02:01]} Ra6 {[%emt 0:00:00]} 44. Ra3 {[%emt 0:00:00]} Kg5 {[%emt 0:00:00]} 45. h4+ {[%emt 0:00:00]} Kf6 {[%emt 0:00:00]} 46. Kf4 {[%emt 0:00:00]} h6 {[%emt 0:00:00]} 47. Ke3 {[%emt 0:00:00]} Ke5 {[%emt 0:00:00]} 48. Ra4 {[%emt 0:00:00]} g5 {[%emt 0:00:00]} 49. g3 {[%emt 0:00:00]} gxh4 {[%emt 0:00:00]} 50. gxh4 {[%emt 0:00:00]} Kd5 {[%emt 0:00:00]} 51. Kf4 {[%emt 0:00:00]} Ke6 {[%emt 0:00:00]} 52. Ke3 {[%emt 0:00:00]} Ke5 {[%emt 0:00:00]} 53. Kd3 {[%emt 0:00:00]} Kd5 {[%emt 0:00:00]} 54. Kc3 {[%emt 0:00:00]} Rc6+ {[%emt 0:06:26]} 55. Kb4 {[%emt 0:00:00]} Rc8 {[%emt 0:01:04]} 56. a6 {[%emt 0:00:00]} Rb8+ {[%emt 0:00:02]} 57. Kc3 {[%emt 0:00:00]} Ke5 {[%emt 0:00:36]} 58. a7 {[%emt 0:00:13]} Ra8 {[%emt 0:00:19]} 59. Kd3 {[%emt 0:01:46]} f4 {[%emt 0:01:09]} 60. Ke2 {[%emt 0:00:20]} Kf5 {[%emt 0:00:33]} 61. Kf3 {[%emt 0:00:27]} Ke5 {[%emt 0:00:02]} 62. Ra5+ {[%emt 0:00:17]} 1-0

[Event "Int SVK-ch Open 2020"]
[Site "Drienica"]
[Date "2020.08.13"]
[Round "7.17"]
[White "Kukan, Michal"]
[Black "Gulas, Gabriel"]
[Result "1-0"]
[ECO "A22"]
[WhiteElo "1769"]
[BlackElo "1472"]
[Annotator "NA"]
[PlyCount "61"]
[EventDate "2020.08.07"]
[EventType "swiss"]
[EventCountry "SVK"]
[SourceTitle "playchess.com"]
[Source "ChessBase"]
[SourceQuality "1"]
[TimeControl "40/5400+30:1800+30"]

1. c4 {[%emt 0:00:00]} e5 {[%emt 0:00:00]} 2. Nc3 {[%emt 0:00:00]} Nf6 {[%emt 0:00:02]} 3. g3 {[%emt 0:00:07]} d5 {[%emt 0:00:13]} 4. cxd5 {[%emt 0:00:31]} Nxd5 {[%emt 0:00:07]} 5. Bg2 {[%emt 0:00:21]} Be6 {[%emt 0:01:04]} 6. Qa4+ {[%emt 0:03:25]} Nc6 {[%emt 0:03:15]} 7. a3 {[%emt 0:02:09]} Bc5 {[%emt 0:06:14]} 8. Qc4 {[%emt 0:04:59]} Ne3 {[%emt 0:18:28]} 9. Qxc5 {[%emt 0:23:29]} Nc2+ {[%emt 0:02:51]} 10. Kf1 {[%emt 0:01:03]} Nxa1 {[%emt 0:01:21]} 11. Bxc6+ {[%emt 0:18:04]} bxc6 {[%emt 0:00:33]} 12. Qxc6+ {[%emt 0:01:49]} Ke7 {[%emt 0:09:50]} 13. d3 {[%emt 0:09:58]} Qd6 {[%emt 0:06:09]} 14. Qa4 {[%emt 0:03:26]} Nb3 {[%emt 0:03:57]} 15. Be3 {[%emt 0:01:04]} Nd4 {[%emt 0:00:52]} 16. f4 {[%emt 0:00:48]} Rhd8 {[%emt 0:12:32]} 17. Ne4 {[%emt 0:02:00]} Qd5 {[%emt 0:07:14]} 18. fxe5 {[%emt 0:04:27]} Qxe5 {[%emt 0:02:53]} 19. Nf3 {[%emt 0:02:32]} Qb5 {[%emt 0:04:17]} 20. Qxb5 {[%emt 0:02:55]} Nxb5 {[%emt 0:00:07]} 21. Bc5+ {[%emt 0:01:05]} Ke8 {[%emt 0:00:53]} 22. Kf2 {[%emt 0:01:12]} a5 {[%emt 0:03:19]} 23. Rc1 {[%emt 0:00:50]} Rab8 {[%emt 0:01:10]} 24. Ne5 {[%emt 0:00:48]} Bd5 {[%emt 0:00:39]} 25. a4 {[%emt 0:00:53]} Nd6 {[%emt 0:00:25]} 26. Ba3 {[%emt 0:00:53]} Nxe4+ {[%emt 0:00:24]} 27. dxe4 {[%emt 0:00:14]} Bxe4 {[%emt 0:00:10]} 28. Rxc7 {[%emt 0:00:14]} Rbc8 {[%emt 0:08:45]} 29. Re7+ {[%emt 0:00:33]} Kf8 {[%emt 0:00:06]} 30. Nxf7 {[%emt 0:01:08]} Rd4 {[%emt 0:03:20]} 31. Rxe4+ {[%emt 0:00:50]} 1-0

[Event "Int SVK-ch Open 2020"]
[Site "Drienica"]
[Date "2020.08.13"]
[Round "7.18"]
[White "Bochnickova, Simona"]
[Black "Kardis, Benjamin"]
[Result "0-1"]
[ECO "B00"]
[WhiteElo "1797"]
[BlackElo "2042"]
[Annotator "ChessBase"]
[PlyCount "52"]
[EventDate "2020.08.07"]
[EventType "swiss"]
[EventCountry "SVK"]
[SourceTitle "playchess.com"]
[Source "ChessBase"]
[SourceQuality "1"]
[TimeControl "40/5400+30:1800+30"]

1. e4 {[%emt 0:00:00]} d6 {[%emt 0:00:00]} 2. d4 {[%emt 0:00:00]} Nf6 {[%emt 0:00:00]} 3. Nc3 {[%emt 0:00:08]} g6 {[%emt 0:00:00]} 4. h3 {[%emt 0:02:55]} Bg7 {[%emt 0:00:15]} 5. Nf3 {[%emt 0:00:11]} Nc6 {[%emt 0:00:05]} 6. Be3 {[%emt 0:00:38]} a6 {[%emt 0:00:05]} 7. Qd2 {[%emt 0:01:45]} b5 {[%emt 0:01:45]} 8. a3 {[%emt 0:01:29]} O-O {[%emt 0:01:19]} 9. Bh6 {[%emt 0:02:34]} e5 {[%emt 0:01:07]} 10. Bxg7 {[%emt 0:05:29]} Kxg7 {[%emt 0:01:01]} 11. O-O-O {[%emt 0:09:44]} b4 {[%emt 0:11:04]} 12. axb4 {[%emt 0:02:07]} exd4 {[%emt 0:00:51]} 13. Nxd4 {[%emt 0:01:00]} Nxb4 {[%emt 0:00:05]} 14. Qg5 {[%emt 0:09:45]} h6 {[%emt 0:08:28]} 15. Qa5 {[%emt 0:00:33]} c5 {[%emt 0:00:08]} 16. Qxd8 {[%emt 0:00:24]} Rxd8 {[%emt 0:00:04]} 17. Nb3 {[%emt 0:03:21]} Bb7 {[%emt 0:00:37]} 18. f3 {[%emt 0:00:11]} a5 {[%emt 0:01:57]} 19. Na4 {[%emt 0:00:43]} Bc6 {[%emt 0:07:13]} 20. Nb6 {[%emt 0:00:52]} a4 {[%emt 0:00:26]} 21. Nxa8 {[%emt 0:04:56]} axb3 {[%emt 0:00:16]} 22. Nb6 {[%emt 0:02:58]} bxc2 {[%emt 0:00:09]} 23. Rd2 {[%emt 0:00:18]} Rb8 {[%emt 0:01:06]} 24. Nd5 {[%emt 0:04:42]} Nfxd5 {[%emt 0:00:39]} 25. exd5 {[%emt 0:00:07]} Bxd5 {[%emt 0:00:29]} 26. Rxd5 {[%emt 0:09:58]} Ra8 {[%emt 0:02:05]} 0-1

[Event "Int SVK-ch Open 2020"]
[Site "Drienica"]
[Date "2020.08.13"]
[Round "7.18"]
[White "Sevcik, Lubomir"]
[Black "Sosovickova, Martina"]
[Result "1-0"]
[ECO "A00"]
[WhiteElo "1748"]
[BlackElo "1362"]
[Annotator "NA"]
[PlyCount "49"]
[EventDate "2020.08.07"]
[EventType "swiss"]
[EventCountry "SVK"]
[SourceTitle "playchess.com"]
[Source "ChessBase"]
[SourceQuality "1"]
[TimeControl "40/5400+30:1800+30"]

1. g3 {[%emt 0:02:13]} e5 {[%emt 0:00:34]} 2. Bg2 {[%emt 0:00:33]} d5 {[%emt 0:01:04]} 3. d3 {[%emt 0:01:49]} Bf5 {[%emt 0:02:54]} 4. c4 {[%emt 0:02:50]} c6 {[%emt 0:03:20]} 5. cxd5 {[%emt 0:00:58]} cxd5 {[%emt 0:00:22]} 6. Qa4+ {[%emt 0:01:16]} Nc6 {[%emt 0:02:25]} 7. Qb3 {[%emt 0:03:08]} Nf6 {[%emt 0:08:40]} 8. Bd2 {[%emt 0:11:45]} Qd7 {[%emt 0:05:44]} 9. Nf3 {[%emt 0:05:41]} Bc5 {[%emt 0:05:35]} 10. O-O {[%emt 0:02:03]} O-O {[%emt 0:01:30]} 11. Nc3 {[%emt 0:02:47]} e4 {[%emt 0:06:50]} 12. Ne1 {[%emt 0:07:55]} Nd4 {[%emt 0:06:44]} 13. Qd1 {[%emt 0:03:39]} Bh3 {[%emt 0:09:23]} 14. Bg5 {[%emt 0:08:04]} Bxg2 {[%emt 0:03:36]} 15. Nxg2 {[%emt 0:04:55]} exd3 {[%emt 0:05:07]} 16. Qxd3 {[%emt 0:01:31]} Ng4 {[%emt 0:02:08]} 17. Ne3 {[%emt 0:08:30]} Ne5 {[%emt 0:03:23]} 18. Qd1 {[%emt 0:01:31]} Qh3 {[%emt 0:09:21]} 19. Ncxd5 {[%emt 0:05:07]} Qh5 {[%emt 0:05:48]} 20. f4 {[%emt 0:05:17]} Ng4 {[%emt 0:02:05]} 21. Bh4 {[%emt 0:06:31]} Rad8 {[%emt 0:02:25]} 22. Nxg4 {[%emt 0:03:20]} Rxd5 {[%emt 0:01:13]} 23. e3 {[%emt 0:01:34]} Ne6 {[%emt 0:04:30]} 24. Qf3 {[%emt 0:00:07]} Rd2 {[%emt 0:00:32]} 25. Nf6+ {[%emt 0:01:03]} 1-0

[Event "Int SVK-ch Open 2020"]
[Site "Drienica"]
[Date "2020.08.13"]
[Round "7.19"]
[White "Dragula, Miroslav"]
[Black "Kucik, Patrik"]
[Result "0-1"]
[ECO "D53"]
[WhiteElo "1566"]
[BlackElo "1572"]
[Annotator "NA"]
[PlyCount "148"]
[EventDate "2020.08.07"]
[EventType "swiss"]
[EventCountry "SVK"]
[SourceTitle "playchess.com"]
[Source "ChessBase"]
[SourceQuality "1"]
[TimeControl "40/5400+30:1800+30"]

1. d4 {[%emt 0:00:00]} Nf6 {[%emt 0:00:00]} 2. c4 {[%emt 0:00:00]} e6 {[%emt 0:00:13]} 3. Nc3 {[%emt 0:00:00]} d5 {[%emt 0:00:42]} 4. Bg5 {[%emt 0:00:17]} Be7 {[%emt 0:04:17]} 5. Nf3 {[%emt 0:00:12]} h6 {[%emt 0:00:24]} 6. Bh4 {[%emt 0:00:17]} c6 {[%emt 0:08:57]} 7. e3 {[%emt 0:01:09]} O-O {[%emt 0:00:37]} 8. Bd3 {[%emt 0:00:14]} Nh7 {[%emt 0:01:28]} 9. Bxe7 {[%emt 0:01:14]} Qxe7 {[%emt 0:00:13]} 10. Qc2 {[%emt 0:00:30]} Nf6 {[%emt 0:01:54]} 11. h3 {[%emt 0:01:31]} Nbd7 {[%emt 0:01:01]} 12. O-O {[%emt 0:00:52]} e5 {[%emt 0:01:48]} 13. cxd5 {[%emt 0:00:28]} cxd5 {[%emt 0:01:19]} 14. dxe5 {[%emt 0:01:03]} Nxe5 {[%emt 0:00:34]} 15. Nxe5 {[%emt 0:00:48]} Qxe5 {[%emt 0:05:42]} 16. Ne2 {[%emt 0:00:57]} Be6 {[%emt 0:03:04]} 17. Nd4 {[%emt 0:04:15]} Rac8 {[%emt 0:03:06]} 18. Qe2 {[%emt 0:00:38]} a6 {[%emt 0:03:32]} 19. Nf3 {[%emt 0:02:13]} Qd6 {[%emt 0:02:21]} 20. Rfe1 {[%emt 0:00:29]} Rc7 {[%emt 0:00:51]} 21. Nd4 {[%emt 0:00:48]} Rfc8 {[%emt 0:02:55]} 22. Qf3 {[%emt 0:04:12]} Qe5 {[%emt 0:06:18]} 23. Qe2 {[%emt 0:01:20]} Qd6 {[%emt 0:02:08]} 24. Qd2 {[%emt 0:01:17]} Qe5 {[%emt 0:00:55]} 25. f4 {[%emt 0:01:54]} Qd6 {[%emt 0:01:54]} 26. Nf3 {[%emt 0:06:58]} Bd7 {[%emt 0:05:10]} 27. a4 {[%emt 0:01:38]} Bc6 {[%emt 0:07:51]} 28. g4 {[%emt 0:02:00]} Qe6 {[%emt 0:03:58]} 29. Bf5 {[%emt 0:02:22]} Qe7 {[%emt 0:01:10]} 30. Bxc8 {[%emt 0:01:49]} Rxc8 {[%emt 0:04:44]} 31. Nd4 {[%emt 0:01:03]} Ne4 {[%emt 0:01:04]} 32. Qh2 {[%emt 0:02:34]} Bd7 {[%emt 0:01:51]} 33. Qg2 {[%emt 0:04:29]} Qb4 {[%emt 0:02:26]} 34. b3 {[%emt 0:04:56]} Rc3 {[%emt 0:04:41]} 35. Rac1 {[%emt 0:09:03]} Rd3 {[%emt 0:01:16]} 36. Qe2 {[%emt 0:01:26]} Rd2 {[%emt 0:05:56]} 37. Qf3 {[%emt 0:01:23]} Rf2 {[%emt 0:02:10]} 38. Qd1 {[%emt 0:01:29]} Rd2 {[%emt 0:03:16]} 39. Qf3 {[%emt 0:00:10]} Rf2 {[%emt 0:00:40]} 40. Qxe4 {[%emt 0:00:00]} dxe4 {[%emt 0:00:00]} 41. Kxf2 {[%emt 0:03:13]} Qd2+ {[%emt 0:01:36]} 42. Kg1 {[%emt 0:00:16]} Kh7 {[%emt 0:01:44]} 43. Rcd1 {[%emt 0:00:37]} Qc3 {[%emt 0:05:10]} 44. Re2 {[%emt 0:01:24]} f6 {[%emt 0:01:28]} 45. Rdd2 {[%emt 0:00:09]} Qc1+ {[%emt 0:00:16]} 46. Kg2 {[%emt 0:00:19]} Qc3 {[%emt 0:00:30]} 47. Rc2 {[%emt 0:01:27]} Qa1 {[%emt 0:02:35]} 48. Rc7 {[%emt 0:01:20]} Bc6 {[%emt 0:01:26]} 49. Ne6 {[%emt 0:04:24]} Qd1 {[%emt 0:01:15]} 50. Kf2 {[%emt 0:02:44]} Qh1 {[%emt 0:01:16]} 51. Nxg7 {[%emt 0:01:57]} Qxh3 {[%emt 0:01:28]} 52. Nh5+ {[%emt 0:02:33]} Kg8 {[%emt 0:01:23]} 53. Nxf6+ {[%emt 0:00:23]} Kf8 54. Ke1 {[%emt 0:02:06]} Qh4+ {[%emt 0:02:58]} 55. Rf2 {[%emt 0:02:13]} Qxf6 {[%emt 0:00:15]} 56. g5 {[%emt 0:00:22]} Qc3+ {[%emt 0:00:51]} 57. Rd2 {[%emt 0:00:17]} Qxe3+ {[%emt 0:00:27]} 58. Kd1 Qxb3+ 59. Ke2 {[%emt 0:01:53]} Qf3+ {[%emt 0:01:12]} 60. Ke1 {[%emt 0:00:10]} Qg3+ {[%emt 0:00:57]} 61. Rf2 {[%emt 0:00:17]} Qc3+ {[%emt 0:00:42]} 62. Rd2 {[%emt 0:00:13]} Qc1+ {[%emt 0:00:38]} 63. Ke2 {[%emt 0:00:25]} Bb5+ {[%emt 0:00:37]} 64. axb5 {[%emt 0:01:10]} Qxc7 {[%emt 0:00:12]} 65. bxa6 {[%emt 0:00:53]} Qc4+ {[%emt 0:02:24]} 66. Ke3 Qxa6 {[%emt 0:00:14]} 67. gxh6 {[%emt 0:01:47]} Qxh6 {[%emt 0:00:17]} 68. Kxe4 {[%emt 0:00:08]} Qc6+ {[%emt 0:00:13]} 69. Rd5 {[%emt 0:00:17]} b5 {[%emt 0:00:12]} 70. Kd4 {[%emt 0:00:33]} Qc4+ {[%emt 0:00:31]} 71. Ke5 {[%emt 0:00:11]} b4 {[%emt 0:00:51]} 72. f5 {[%emt 0:00:04]} b3 {[%emt 0:00:28]} 73. Rd6 {[%emt 0:00:30]} Qc5+ {[%emt 0:00:39]} 74. Ke6 {[%emt 0:00:25]} Qxd6+ {[%emt 0:00:20]} 0-1

[Event "Int SVK-ch Open 2020"]
[Site "Drienica"]
[Date "2020.08.13"]
[Round "7.20"]
[White "Ihnat, Marek"]
[Black "Marsina, Stefan"]
[Result "0-1"]
[ECO "B07"]
[WhiteElo "2065"]
[BlackElo "1854"]
[Annotator "ChessBase"]
[PlyCount "68"]
[EventDate "2020.08.07"]
[EventType "swiss"]
[EventCountry "SVK"]
[SourceTitle "playchess.com"]
[Source "ChessBase"]
[SourceQuality "1"]
[TimeControl "40/5400+30:1800+30"]

1. e4 {[%emt 0:00:00]} d6 {[%emt 0:00:00]} 2. d4 {[%emt 0:00:00]} Nf6 {[%emt 0:00:00]} 3. Nc3 {[%emt 0:00:21]} c6 {[%emt 0:00:08]} 4. Bg5 {[%emt 0:01:31]} Nbd7 {[%emt 0:01:24]} 5. f4 {[%emt 0:00:47]} Qb6 {[%emt 0:04:16]} 6. Rb1 {[%emt 0:09:25]} e5 {[%emt 0:06:12]} 7. Nf3 {[%emt 0:05:25]} h6 {[%emt 0:44:27]} 8. Bxf6 {[%emt 0:00:19]} Nxf6 {[%emt 0:00:07]} 9. f5 {[%emt 0:11:15]} Bd7 {[%emt 0:12:24]} 10. Qd2 {[%emt 0:02:16]} O-O-O {[%emt 0:07:03]} 11. Bd3 {[%emt 0:03:31]} exd4 {[%emt 0:04:48]} 12. Na4 {[%emt 0:00:18]} Qc7 {[%emt 0:00:30]} 13. Nxd4 {[%emt 0:01:19]} d5 {[%emt 0:00:43]} 14. exd5 {[%emt 0:05:43]} Qe5+ {[%emt 0:03:24]} 15. Ne2 {[%emt 0:01:42]} cxd5 {[%emt 0:01:30]} 16. Qc3+ {[%emt 0:02:01]} Qxc3+ {[%emt 0:01:58]} 17. Naxc3 {[%emt 0:00:06]} Bc5 {[%emt 0:01:17]} 18. b4 {[%emt 0:16:39]} Bb6 {[%emt 0:01:26]} 19. h3 {[%emt 0:04:16]} Rhe8 {[%emt 0:00:35]} 20. a4 {[%emt 0:02:02]} Nh5 {[%emt 0:01:11]} 21. Rf1 {[%emt 0:02:45]} Nf6 {[%emt 0:02:05]} 22. a5 {[%emt 0:03:30]} Bc7 {[%emt 0:00:13]} 23. Rf3 {[%emt 0:00:44]} d4 {[%emt 0:01:31]} 24. Nb5 {[%emt 0:04:14]} Be5 {[%emt 0:01:34]} 25. Nxa7+ {[%emt 0:02:16]} Kb8 {[%emt 0:00:01]} 26. Nb5 {[%emt 0:01:14]} Bc6 {[%emt 0:00:02]} 27. Rf1 {[%emt 0:05:40]} Nd5 {[%emt 0:00:54]} 28. Kd2 {[%emt 0:03:05]} Ne3 {[%emt 0:00:29]} 29. Rg1 {[%emt 0:02:50]} Nxg2 30. Ra1 {[%emt 0:01:07]} Ne3 {[%emt 0:01:32]} 31. Ng3 {[%emt 0:03:43]} Nd5 {[%emt 0:00:26]} 32. Rab1 {[%emt 0:02:31]} Bf4+ {[%emt 0:00:28]} 33. Kd1 {[%emt 0:01:24]} Bxb5 {[%emt 0:00:13]} 34. Bxb5 {[%emt 0:00:49]} Nc3# {[%emt 0:00:17]} 0-1